Workbook

Sheet Sheet1
A4: INSTRUCTIONS: Use this form when a single information collection document involves multiple reporting and recordkeeping requirements. The totals of the figures in cols. should be entered in item 13 of OMB-83-I: cols. (D) &/or (I) = 13a (respondent is only counted once); cols. F & I = 13b; cols. H & K = 13c. (F)Total/(D)Total = (E)Average (H)Total/(F)Total = (G)Average (K)Total/(I)Total = (J)Average NOTE: The columns will calculate automatically. If Col. E's response is something other than annually, i.e., 1/6 years, list as "1/6" & decimal will display. | I4: TITLE OF INFORMATION COLLECTION DOCUMENT | N4: OMB NO.
I6: Reporting and Recordkeeping Requirements (U.S. Grain Standards Act and Agricultural Marketing Act of 1946) | N6: 0581-0309
N9: DATE PREPARED
N11: 2024-09-30
A13: IDENTIFICATION OF REPORTING OR RECORDKEEPING REQUIREMENT | H13: ANNUAL BURDEN
H15: REPORTS | M15: RECORDS
O17: TOTAL
G18: FORMS NO (S) | H18: NO. OF | I18: NO OF | J18: TOTAL ANNUAL | K18: HOURS | L18: TOTAL | M18: NO. OF | N18: ANNUAL | O18: RECORD-
A19: SECTION OF | B19: DESCRIPTION | G19: (If "none" | H19: RESPONDENTS | I19: RESPONSES | J19: RESPONSES | K19: PER | L19: HOURS | M19: RECORD- | N19: HOURS PER | O19: KEEPING HOURS
A20: REGS. | G20: so state) | I20: PER | J20: (Col. D x E) | K20: RESPONSE | L20: (Col. F x G) | M20: KEEPERS | N20: RECORD- | O20: (Col. I x J)
I21: RESPONDENT | N21: KEEPER
A22: (A) | B22: (B) | G22: (C) | H22: (D) | I22: (E) | J22: (F) | K22: (G) | L22: (H) | M22: (I) | N22: (J) | O22: (K)
A23: USGSA 800.115, 145,147,154,195,196,198 | B23: Application and Agreement for Contract Service | G23: FGIS-4 | H23: 18 | I23: 4.00 | J23: =SUM(H23*I23) -> 72.00 | K23: 0.330 | L23: =SUM(J23*K23) -> 23.76 | M23: 0 | N23: 0.000 | O23: =SUM(M23*N23) -> 0.00
A24: 800.186, 187, 195, 196, 199 | B24: Conflict-of-Interest Questionnaire (Non-Licensed Official Agency Personnel) | G24: FGIS-100 | H24: 20 | I24: 4.00 | J24: =SUM(H24*I24) -> 80.00 | K24: 0.083 | L24: =SUM(J24*K24) -> 6.64 | M24: 0 | N24: 0.000 | O24: =SUM(M24*N24) -> 0.00
A25: 800.145,151, 153,155,158, 195,196,217 | B25: Laboratory Scale Test | G25: FGIS-904 | H25: 55 | I25: 50.44 | J25: =SUM(H25*I25) -> 2,774.20 | K25: 0.167 | L25: =SUM(J25*K25) -> 463.29 | M25: 0 | N25: 0.000 | O25: =SUM(M25*N25) -> 0.00
A26: 800.005,015, 046,047,075, 076,085,086, 087,095,115, 116,125,126, 135,136,163, 164;868.021, 030,040,042, 044,050,051, 060,061,074, 075 | B26: Application for Inspection and Weighing Services | G26: FGIS-907 | H26: 3,051 | I26: 24.87 | J26: =SUM(H26*I26) -> 75,864.00 | K26: 0.083 | L26: =SUM(J26*K26) -> 6,296.71 | M26: 0 | N26: 0.000 | O26: =SUM(M26*N26) -> 0.00
B27: SUBTOTAL | H27: =SUM(H23:H26) -> 3,144.00 | I27: =SUM(I23:I26) -> 83.31 | J27: =SUM(J23:J26) -> 78,790.20 | L27: =SUM(L23:L26) -> 6,790.40 | M27: =SUM(M23:M26) -> 0.00 | O27: =SUM(O23:O26) -> 0.00 | P27: Estimate of Burden | R27: =L29/J28 -> 0.13
B28: TOTAL OF ALL PAGES | H28: =SUM(H27+H57+H87+H115+H143+H170+H199+H228+H257+H286+H313+H340+H368+H397+H423) -> 9,910.00 | I28: =SUM(I27+I57+I87+I115+I143+I170+I199+I228+I257+I286+I313+I340+I368+I397+I1148+I1177+I1206+I1235+I1264+I1293+I1322+I1351+I1380+I1409+I1438+I1467+I1496+I1525+I1554+I1583+I1612+I1641+I1670+I1699+I1728+I423) -> 23,679.28 | J28: =SUM(J27+J57+J87+J115+J143+J170+J199+J228+J257+J286+J313+J340+J368+J397+J1148+J1177+J1206+J1235+J1264+J1293+J1322+J1351+J1380+J1409+J1438+J1467+J1496+J1525+J1554+J1583+J1612+J1641+J1670+J1699+J1728+J423) -> 1,243,553.08 | L28: =SUM(L27+L57+L87+L115+L143+L170+L199+L228+L257+L286+L313+L340+L368+L397+L1148+L1177+L1206+L1235+L1264+L1293+L1322+L1351+L1380+L1409+L1438+L1467+L1496+L1525+L1554+L1583+L1612+L1641+L1670+L1699+L1728+L423) -> 125,561.38 | M28: =SUM(M27+M57+M87+M115+M143+M170+M199+M228+M257+M286+M313+M340+M368+M397+M1148+M1177+M1206+M1235+M1264+M1293+M1322+M1351+M1380+M1409+M1438+M1467+M1496+M1525+M1554+M1583+M1612+M1641+M1670+M1699+M1728+M423) -> 840.00 | N28: =SUM(N27+N57+N87+N115+N143+N170+N199+N228+N257+N286+N313+N340+N368+N397+N1148+N1177+N1206+N1235+N1264+N1293+N1322+N1351+N1380+N1409+N1438+N1467+N1496+N1525+N1554+N1583+N1612+N1641+N1670+N1699+N1728+N423) -> 0.00 | O28: =SUM(O27+O57+O87+O115+O143+O170+O199+O228+O257+O286+O313+O340+O368+O397+O1148+O1177+O1206+O1235+O1264+O1293+O1322+O1351+O1380+O1409+O1438+O1467+O1496+O1525+O1554+O1583+O1612+O1641+O1670+O1699+O1728+O423) -> 36,697.50 | P28: Estimated Number of Responses Per Respondent | U28: =J28/H28 -> 125.48
A29: TOTAL - COLUMNS "F" AND "I" = OMB 831, 13 b; COLUMNS "H" AND "K" = OMB 831, 13c | L29: =SUM(L28+O28) -> 162,258.88
A33: INSTRUCTIONS: Use this form when a single information collection document involves multiple reporting and recordkeeping requirements. The totals of the figures in cols. should be entered in item 13 of OMB-83-1: cols. (D) &/or (I) = 13a (respondent is only counted once); cols. F & I = 13b; cols. H & K = 13c. (F)Total/(D)Total = (E)Average (H)Total/(F)Total = (G)Average (K)Total/(I)Total = (J)Average NOTE: The columns will calculate automatically. If Col. E's response is something other than annually, i.e., 1/6 years, list as "1/6" & decimal will display. | I33: TITLE OF INFORMATION COLLECTION DOCUMENT | N33: OMB NO.
I35: Reporting and Recordkeeping Requirements (U.S. Grain Standards Act and Agricultural Marketing Act of 1946) | N35: =N6 -> 0581-0309
N38: DATE PREPARED
N40: =N11 -> 2024-09-30
A42: IDENTIFICATION OF REPORTING OR RECORDKEEPING REQUIREMENT | H42: ANNUAL BURDEN
H44: REPORTS | M44: RECORDS
O46: TOTAL
G47: FORMS NO (S) | H47: NO. OF | I47: NO OF | J47: TOTAL ANNUAL | K47: HOURS | L47: TOTAL | M47: NO. OF | N47: ANNUAL | O47: RECORD-
A48: SECTION OF | B48: DESCRIPTION | G48: (If "none" | H48: RESPONDENTS | I48: RESPONSES | J48: RESPONSES | K48: PER | L48: HOURS | M48: RECORD- | N48: HOURS PER | O48: KEEPING HOURS
A49: REGS. | G49: so state) | I49: PER | J49: (Col. D x E) | K49: RESPONSE | L49: (Col. F x G) | M49: KEEPERS | N49: RECORD- | O49: (Col. I x J)
I50: RESPONDENT | N50: KEEPER
A51: (A) | B51: (B) | G51: (C) | H51: (D) | I51: (E) | J51: (F) | K51: (G) | L51: (H) | M51: (I) | N51: (J) | O51: (K)
A52: 800.016,017, 075,076,081, 082,083,085, 086,118,129, 139,145,153, 155,161,162, 163,164,165, 166,195,196 | B52: Official Export Grain Inspection Certificate | G52: FGIS-909 | J52: =SUM(H52*I52) -> 0.00 | L52: =SUM(J52*K52) -> 0.00 | M52: 7 | N52: 39.097 | O52: =SUM(M52*N52) -> 273.68
A53: 800.086,129, 139,145,153, 155,156,185, 195,196 | B53: Inspection Log | G53: FGIS-921 | H53: 20 | I53: 34.55 | J53: =SUM(H53*I53) -> 691.00 | K53: 6.660 | L53: =SUM(J53*K53) -> 4,602.06 | M53: 12 | N53: 0.083 | O53: =SUM(M53*N53) -> 1.00
A54: USGSA 800.145,155, 195 | B54: Inspection Report - Insects in Grain | G54: FGIS-921-2 | H54: 55 | I54: 27.00 | J54: =SUM(H54*I54) -> 1,485.00 | K54: 0.083 | L54: =SUM(J54*K54) -> 123.26 | M54: 55 | N54: 0.012 | O54: =SUM(M54*N54) -> 0.66
A55: 800.145,155, 159,195,196 | B55: Inspection and Weighing Report | G55: FGIS-922 | H55: 56 | I55: 12.00 | J55: =SUM(H55*I55) -> 672.00 | K55: 0.667 | L55: =SUM(J55*K55) -> 448.22 | M55: 56 | N55: 0.012 | O55: =SUM(M55*N55) -> 0.67
A56: 800.145,151, 153,155,158, 195,196,217 | B56: UGMA Moisture Meter Test | G56: FGIS-923 | H56: 56 | I56: 20.71 | J56: =SUM(H56*I56) -> 1,159.76 | K56: 0.330 | L56: =SUM(J56*K56) -> 382.72 | M56: 0 | N56: 0.000 | O56: =SUM(M56*N56) -> 0.00
B57: SUBTOTAL | H57: =SUM(H52:H56) -> 187.00 | I57: =SUM(I52:I56) -> 94.26 | J57: =SUM(J52:J56) -> 4,007.76 | L57: =SUM(L52:L56) -> 5,556.26 | M57: =SUM(M52:M56) -> 130 | O57: =SUM(O52:O56) -> 276.01
A61: INSTRUCTIONS: Use this form when a single information collection document involves multiple reporting and recordkeeping requirements. The totals of the figures in cols. should be entered in item 13 of OMB-83-1: cols. (D) &/or (I) = 13a (respondent is only counted once); cols. F & I = 13b; cols. H & K = 13c. (F)Total/(D)Total = (E)Average (H)Total/(F)Total = (G)Average (K)Total/(I)Total = (J)Average NOTE: The columns will calculate automatically. If Col. E's response is something other than annually, i.e., 1/6 years, list as "1/6" & decimal will display. | I61: TITLE OF INFORMATION COLLECTION DOCUMENT | N61: OMB NO.
I63: Reporting and Recordkeeping Requirements (U.S. Grain Standards Act and Agricultural Marketing Act of 1946) | N63: =N6 -> 0581-0309
N66: DATE PREPARED
N68: =N11 -> 2024-09-30
A70: IDENTIFICATION OF REPORTING OR RECORDKEEPING REQUIREMENT | H70: ANNUAL BURDEN
H72: REPORTS | M72: RECORDS
O74: TOTAL
G75: FORMS NO (S) | H75: NO. OF | I75: NO OF | J75: TOTAL ANNUAL | K75: HOURS | L75: TOTAL | M75: NO. OF | N75: ANNUAL | O75: RECORD-
A76: SECTION OF | B76: DESCRIPTION | G76: (If "none" | H76: RESPONDENTS | I76: RESPONSES | J76: RESPONSES | K76: PER | L76: HOURS | M76: RECORD- | N76: HOURS PER | O76: KEEPING HOURS
A77: REGS. | G77: so state) | I77: PER | J77: (Col. D x E) | K77: RESPONSE | L77: (Col. F x G) | M77: KEEPERS | N77: RECORD- | O77: (Col. I x J)
I78: RESPONDENT | N78: KEEPER
A79: (A) | B79: (B) | G79: (C) | H79: (D) | I79: (E) | J79: (F) | K79: (G) | L79: (H) | M79: (I) | N79: (J) | O79: (K)
A80: 800.145,151,153,155,158,195,196,217 | B80: Barley Pearler and Sieve Test | G80: FGIS-924 | H80: 56 | I80: 17.43 | J80: =SUM(H80*I80) -> 976.08 | K80: 0.250 | L80: =SUM(J80*K80) -> 244.02 | M80: 0 | N80: 0.000 | O80: =SUM(M80*N80) -> 0.00
A81: AMA 868.030 | B81: Rice Checklist Form | G81: FGIS-925 | H81: 2 | I81: 2.00 | J81: 4.00 | K81: 2.000 | L81: 8.00 | M81: 1.000 | N81: 2.000 | O81: 2.00
A82: USGSA 800.145,151, 153,155,158, 195,196,217 | B82: Testweight Checktest | G82: FGIS-927 | H82: 56 | I82: 28.32 | J82: 1,585.92 | K82: 0.083 | L82: 131.63 | M82: 0 | N82: 0.000 | O82: 0.00
A83: 800.145,151, 153,155,158, 195,196,217 | B83: Dockage Checklist | G83: FGIS-928 | H83: 56 | I83: 15.14 | J83: 847.84 | K83: 0.333 | L83: 282.33 | M83: 0 | N83: 0.000 | O83: 0.00
A84: AMA 868.030 | B84: AMA Output Report | G84: FGIS-930 | H84: 12 | I84: 12.00 | J84: 144.00 | K84: 0.250 | L84: 36.00 | M84: 0 | N84: 0.000 | O84: 0.00
A85: USGSA 800.075,145, 153,155,157, 158,195,196, 217 | B85: Approved Label for Inspected Machinery | G85: FGIS-931 | H85: 3,591 | I85: 2.00 | J85: 7,182.00 | K85: 0.00 | L85: 7.18 | M85: 0 | N85: 0.000 | O85: 0.00
A86: USGSA 800.145,151, 153,155,158, 195,196, 217 | B86: Sampler Condition Report | G86: FGIS-936 | H86: 56 | I86: 47.63 | J86: 2,667.28 | K86: 0.750 | L86: 2,000.46 | M86: 0 | N86: 0.000 | O86: 0.00
B87: SUBTOTAL | H87: =SUM(H80:H86) -> 3,829.00 | I87: =SUM(I80:I86) -> 124.52 | J87: =SUM(J80:J86) -> 13,407.12 | L87: =SUM(L80:L86) -> 2,709.62 | M87: =SUM(M80:M86) -> 1 | O87: =SUM(O80:O86) -> 2.00
A91: INSTRUCTIONS: Use this form when a single information collection document involves multiple reporting and recordkeeping requirements. The totals of the figures in cols. should be entered in item 13 of OMB-83-1: cols. (D) &/or (I) = 13a (respondent is only counted once); cols. F & I = 13b; cols. H & K = 13c. (F)Total/(D)Total = (E)Average (H)Total/(F)Total = (G)Average (K)Total/(I)Total = (J)Average NOTE: The columns will calculate automatically. If Col. E's response is something other than annually, i.e., 1/6 years, list as "1/6" & decimal will display. | I91: TITLE OF INFORMATION COLLECTION DOCUMENT | N91: OMB NO.
I93: Reporting and Recordkeeping Requirements (U.S. Grain Standards Act and Agricultural Marketing Act of 1946) | N93: =N6 -> 0581-0309
N96: DATE PREPARED
N98: =N11 -> 2024-09-30
A100: IDENTIFICATION OF REPORTING OR RECORDKEEPING REQUIREMENT | H100: ANNUAL BURDEN
H102: REPORTS | M102: RECORDS
O104: TOTAL
G105: FORMS NO (S) | H105: NO. OF | I105: NO OF | J105: TOTAL ANNUAL | K105: HOURS | L105: TOTAL | M105: NO. OF | N105: ANNUAL | O105: RECORD-
A106: SECTION OF | B106: DESCRIPTION | G106: (If "none" | H106: RESPONDENTS | I106: RESPONSES | J106: RESPONSES | K106: PER | L106: HOURS | M106: RECORD- | N106: HOURS PER | O106: KEEPING HOURS
A107: REGS. | G107: so state) | I107: PER | J107: (Col. D x E) | K107: RESPONSE | L107: (Col. F x G) | M107: KEEPERS | N107: RECORD- | O107: (Col. I x J)
I108: RESPONDENT | N108: KEEPER
A109: (A) | B109: (B) | G109: (C) | H109: (D) | I109: (E) | J109: (F) | K109: (G) | L109: (H) | M109: (I) | N109: (J) | O109: (K)
A110: USGSA 800.145,155, 159, 195,196, | B110: Report of Grain Inspected and Weighed for Export | G110: FGIS-938 | H110: 20 | I110: 26.00 | J110: =SUM(H110*I110) -> 520.00 | K110: 0.250 | L110: =SUM(J110*K110) -> 130.00 | M110: 20 | N110: 0.104 | O110: =SUM(M110*N110) -> 2.08
A111: 800.075 | B111: Request for Waiver of Inspection | G111: FGIS-941 | H111: 13 | I111: 1.00 | J111: =SUM(H111*I111) -> 13.00 | K111: 0.083 | L111: =SUM(J111*K111) -> 1.08 | M111: 13 | N111: 0.001 | O111: =SUM(M111*N111) -> 0.01
A112: 800.075, 196 | B112: Application for Designation | G112: FGIS-942 | H112: 20 | I112: 1.00 | J112: =SUM(H112*I112) -> 20.00 | K112: 2.000 | L112: =SUM(J112*K112) -> 40.00 | M112: 20 | N112: 0.001 | O112: =SUM(M112*N112) -> 0.02
A113: 800.017,018, 145,149,154, 159,172,174, 175,176,177, 186,187,195, 196,199; 868.081,082, 083,084 | B113: Application for License under the U.S. Grain Standards Act (USGSA) and/or The Agriculture Marketing Act (and) of 1946 | G113: FGIS-944 | H113: 240 | I113: 1.00 | J113: =SUM(H113*I113) -> 240.00 | K113: 0.133 | L113: =SUM(J113*K113) -> 31.92 | M113: 0 | N113: 0.000 | O113: =SUM(M113*N113) -> 0.00
A114: 800.031, 032 | B114: Application for Registration | G114: FGIS-945 | H114: 100 | I114: 1.00 | J114: =SUM(H114*I114) -> 100.00 | K114: 0.033 | L114: =SUM(J114*K114) -> 3.30 | M114: 0 | N114: 0.000 | O114: =SUM(M114*N114) -> 0.00
B115: SUBTOTAL | H115: =SUM(H110:H114) -> 393.00 | I115: =SUM(I110:I114) -> 30.00 | J115: =SUM(J110:J114) -> 893.00 | L115: =SUM(L110:L114) -> 206.30 | M115: =SUM(M110:M114) -> 53 | O115: =SUM(O110:O114) -> 2.11
A119: INSTRUCTIONS: Use this form when a single information collection document involves multiple reporting and recordkeeping requirements. The totals of the figures in cols. should be entered in item 13 of OMB-83-1: cols. (D) &/or (I) = 13a (respondent is only counted once); cols. F & I = 13b; cols. H & K = 13c. (F)Total/(D)Total = (E)Average (H)Total/(F)Total = (G)Average (K)Total/(I)Total = (J)Average NOTE: The columns will calculate automatically. If Col. E's response is something other than annually, i.e., 1/6 years, list as "1/6" & decimal will display. | I119: TITLE OF INFORMATION COLLECTION DOCUMENT | N119: OMB NO.
I121: Reporting and Recordkeeping Requirements (U.S. Grain Standards Act and Agricultural Marketing Act of 1946) | N121: =N6 -> 0581-0309
N124: DATE PREPARED
N126: =N11 -> 2024-09-30
A128: IDENTIFICATION OF REPORTING OR RECORDKEEPING REQUIREMENT | H128: ANNUAL BURDEN
H130: REPORTS | M130: RECORDS
O132: TOTAL
G133: FORMS NO (S) | H133: NO. OF | I133: NO OF | J133: TOTAL ANNUAL | K133: HOURS | L133: TOTAL | M133: NO. OF | N133: ANNUAL | O133: RECORD-
A134: SECTION OF | B134: DESCRIPTION | G134: (If "none" | H134: RESPONDENTS | I134: RESPONSES | J134: RESPONSES | K134: PER | L134: HOURS | M134: RECORD- | N134: HOURS PER | O134: KEEPING HOURS
A135: REGS. | G135: so state) | I135: PER | J135: (Col. D x E) | K135: RESPONSE | L135: (Col. F x G) | M135: KEEPERS | N135: RECORD- | O135: (Col. I x J)
I136: RESPONDENT | N136: KEEPER
A137: (A) | B137: (B) | G137: (C) | H137: (D) | I137: (E) | J137: (F) | K137: (G) | L137: (H) | M137: (I) | N137: (J) | O137: (K)
A138: 800.145,147, 154,195,196, 198 | B138: Warehouseman's Sample-Lot Inspection Service Contract | G138: FGIS-950 | H138: 11 | I138: 1.00 | J138: =SUM(H138*I138) -> 11.00 | K138: 0.083 | L138: =SUM(J138*K138) -> 0.91 | M138: 4 | N138: 0.183 | O138: =SUM(M138*N138) -> 0.73
A139: AMA 868.033 | B139: Sanitation Inspection Report (Processed Products) | G139: FGIS-952 | H139: 12 | I139: 11.00 | J139: =SUM(H139*I139) -> 132.00 | K139: 1.500 | L139: =SUM(J139*K139) -> 198.00 | M139: 4 | N139: 0.008 | O139: =SUM(M139*N139) -> 0.03
A140: 868.033 | B140: Sanitation Inspection Report (Beans, Peas, and Lentils) | G140: FGIS-952-1 | H140: 6 | I140: 13.33 | J140: =SUM(H140*I140) -> 79.98 | K140: 1.000 | L140: =SUM(J140*K140) -> 79.98 | M140: 3 | N140: 0.013 | O140: =SUM(M140*N140) -> 0.04
A141: 868.033 | B141: Sanitation Inspection Report (Overpacker) This action was not used during the last 3 years and is not anticipated for use during the next 3 years. Requirement is maintained in regs if any incident should occur. | G141: FGIS-952-2 | H141: 0 | I141: 0.00 | J141: =SUM(H141*I141) -> 0.00 | K141: 0.000 | L141: =SUM(J141*K141) -> 0.00 | M141: 0 | N141: 0.000 | O141: =SUM(M141*N141) -> 0.00
A142: AMA 868.030,031, 033,035,043, 044,052,070, 071,072,073, 074,075 | B142: Rice Inspection Services Certificate | G142: FGIS-956 | H142: 0 | I142: 0.00 | J142: =SUM(H142*I142) -> 0.00 | K142: 0.000 | L142: =SUM(J142*K142) -> 0.00 | M142: 2 | N142: 31.270 | O142: =SUM(M142*N142) -> 62.54
B143: SUBTOTAL | H143: =SUM(H138:H142) -> 29.00 | I143: =SUM(I138:I142) -> 25.33 | J143: =SUM(J138:J142) -> 222.98 | L143: =SUM(L138:L142) -> 278.89 | M143: =SUM(M138:M142) -> 13 | O143: =SUM(O138:O142) -> 63.34
A147: INSTRUCTIONS: Use this form when a single information collection document involves multiple reporting and recordkeeping requirements. The totals of the figures in cols. should be entered in item 13 of OMB-83-1: cols. (D) &/or (I) = 13a (respondent is only counted once); cols. F & I = 13b; cols. H & K = 13c. (F)Total/(D)Total = (E)Average (H)Total/(F)Total = (G)Average (K)Total/(I)Total = (J)Average NOTE: The columns will calculate automatically. If Col. E's response is something other than annually, i.e., 1/6 years, list as "1/6" & decimal will display. | I147: TITLE OF INFORMATION COLLECTION DOCUMENT | N147: OMB NO.
I149: Reporting and Recordkeeping Requirements (U.S. Grain Standards Act and Agricultural Marketing Act of 1946) | N149: =N6 -> 0581-0309
N152: DATE PREPARED
N154: =N11 -> 2024-09-30
A156: IDENTIFICATION OF REPORTING OR RECORDKEEPING REQUIREMENT | H156: ANNUAL BURDEN
H158: REPORTS | M158: RECORDS
O160: TOTAL
G161: FORMS NO (S) | H161: NO. OF | I161: NO OF | J161: TOTAL ANNUAL | K161: HOURS | L161: TOTAL | M161: NO. OF | N161: ANNUAL | O161: RECORD-
A162: SECTION OF | B162: DESCRIPTION | G162: (If "none" | H162: RESPONDENTS | I162: RESPONSES | J162: RESPONSES | K162: PER | L162: HOURS | M162: RECORD- | N162: HOURS PER | O162: KEEPING HOURS
A163: REGS. | G163: so state) | I163: PER | J163: (Col. D x E) | K163: RESPONSE | L163: (Col. F x G) | M163: KEEPERS | N163: RECORD- | O163: (Col. I x J)
I164: RESPONDENT | N164: KEEPER
A165: (A) | B165: (B) | G165: (C) | H165: (D) | I165: (E) | J165: (F) | K165: (G) | L165: (H) | M165: (I) | N165: (J) | O165: (K)
A166: USGSA 800.016,017, 075,076,095, 096,097,098, 099,118,129, 145,153,155, 161,163,164, 165,166,195, 196 | B166: Official Grain Weight Certificate | G166: FGIS-960 | H166: 0 | I166: 0.00 | J166: =SUM(H166*I166) -> 0.00 | K166: 0.000 | L166: =SUM(J166*K166) -> 0.00 | M166: 7 | N166: 3.736 | O166: =SUM(M166*N166) -> 26.15
A167: 800.046,145,153,155,157,158,195,196 | B167: Scale Record Log | G167: FGIS-963 | H167: 0 | I167: 0.00 | J167: =SUM(H167*I167) -> 0.00 | K167: 0.000 | L167: =SUM(J167*K167) -> 0.00 | M167: 17 | N167: 8.580 | O167: =SUM(M167*N167) -> 145.86
A168: 800.016,075, 076,095,096, 097,098,099, 118,129,145, 153,155,161, 164,165,166, 195,196 | B168: Supervision of Weight Certificate | G168: FGIS-964 | H168: 0 | I168: 0.00 | J168: =SUM(H168*I168) -> 0.00 | K168: 0.000 | L168: =SUM(J168*K168) -> 0.00 | M168: 38 | N168: 42.084 | O168: =SUM(M168*N168) -> 1,599.19
A169: 800.075,145, 153,155,157, 195,196,217 | B169: Scale Test Report (Hopper) | G169: FGIS-965 | H169: 6 | I169: 31.00 | J169: =SUM(H169*I169) -> 186.00 | K169: 2.000 | L169: =SUM(J169*K169) -> 372.00 | M169: 7 | N169: 0.100 | O169: =SUM(M169*N169) -> 0.70
B170: SUBTOTAL | H170: =SUM(H166:H169) -> 6.00 | I170: =SUM(I166:I169) -> 31.00 | J170: =SUM(J166:J169) -> 186.00 | L170: =SUM(L166:L169) -> 372.00 | M170: =SUM(M166:M169) -> 69 | O170: =SUM(O166:O169) -> 1,771.90
A174: INSTRUCTIONS: Use this form when a single information collection document involves multiple reporting and recordkeeping requirements. The totals of the figures in cols. should be entered in item 13 of OMB-83-1: cols. (D) &/or (I) = 13a (respondent is only counted once); cols. F & I = 13b; cols. H & K = 13c. (F)Total/(D)Total = (E)Average (H)Total/(F)Total = (G)Average (K)Total/(I)Total = (J)Average NOTE: The columns will calculate automatically. If Col. E's response is something other than annually, i.e., 1/6 years, list as "1/6" & decimal will display. | I174: TITLE OF INFORMATION COLLECTION DOCUMENT | N174: OMB NO.
I176: Reporting and Recordkeeping Requirements (U.S. Grain Standards Act and Agricultural Marketing Act of 1946) | N176: =N6 -> 0581-0309
N179: DATE PREPARED
N181: =N11 -> 2024-09-30
A183: IDENTIFICATION OF REPORTING OR RECORDKEEPING REQUIREMENT | H183: ANNUAL BURDEN
H185: REPORTS | M185: RECORDS
O187: TOTAL
G188: FORMS NO (S) | H188: NO. OF | I188: NO OF | J188: TOTAL ANNUAL | K188: HOURS | L188: TOTAL | M188: NO. OF | N188: ANNUAL | O188: RECORD-
A189: SECTION OF | B189: DESCRIPTION | G189: (If "none" | H189: RESPONDENTS | I189: RESPONSES | J189: RESPONSES | K189: PER | L189: HOURS | M189: RECORD- | N189: HOURS PER | O189: KEEPING HOURS
A190: REGS. | G190: so state) | I190: PER | J190: (Col. D x E) | K190: RESPONSE | L190: (Col. F x G) | M190: KEEPERS | N190: RECORD- | O190: (Col. I x J)
I191: RESPONDENT | N191: KEEPER
A192: (A) | B192: (B) | G192: (C) | H192: (D) | I192: (E) | J192: (F) | K192: (G) | L192: (H) | M192: (I) | N192: (J) | O192: (K)
A193: 800.075,145, 153,155,157, 195,196,217 | B193: Scale Test Report (Railroad Track) | G193: FGIS-965-1 | H193: 1 | I193: 14.00 | J193: =SUM(H193*I193) -> 14.00 | K193: 1.000 | L193: =SUM(J193*K193) -> 14.00 | M193: 1 | N193: 0.230 | O193: =SUM(M193*N193) -> 0.23
A194: 800.075,145, 153,155,157, 195,196,217 | B194: Scale Test Report (Vehicle) | G194: FGIS-965-2 | H194: 7 | I194: 6.86 | J194: 48.02 | K194: 2.000 | L194: 96.04 | M194: 7 | N194: 0.100 | O194: 0.70
A195: 800.095,096, 097,098,099, 145,153,155, 157,195,196 | B195: Weight Loading Log | G195: FGIS-968 | H195: 6 | I195: 163.00 | J195: 978.00 | K195: 4.850 | L195: 4,743.30 | M195: 6 | N195: 0.113 | O195: 0.68
A196: 800.145,151, 158,195,196, 217 | B196: Authorization to Use Mechanical Sampler | G196: FGIS-980 | H196: 50 | I196: 1.00 | J196: 50.00 | K196: 0.083 | L196: 4.15 | O196: 0.00
B197: Contract Service Agreement | G197: FGIS-983 | H197: 19 | I197: 1.00 | J197: 19.00 | K197: 0.167 | L197: 3.17 | M197: 0 | N197: 0.000 | O197: 0.00
A198: AMA 868.033 | B198: Services Performed Report | G198: FGIS-992 | H198: 4 | I198: 2062.00 | J198: 8,248.00 | K198: 0.333 | L198: 2,746.58 | M198: 4 | N198: 3.285 | O198: 13.14
B199: SUBTOTAL | H199: =SUM(H193:H198) -> 87.00 | I199: =SUM(I193:I198) -> 2,247.86 | J199: =SUM(J193:J198) -> 9,357.02 | L199: =SUM(L193:L198) -> 7,607.25 | M199: =SUM(M194:M198) -> 17 | O199: =SUM(O193:O198) -> 14.75
A203: INSTRUCTIONS: Use this form when a single information collection document involves multiple reporting and recordkeeping requirements. The totals of the figures in cols. should be entered in item 13 of OMB-83-1: cols. (D) &/or (I) = 13a (respondent is only counted once); cols. F & I = 13b; cols. H & K = 13c. (F)Total/(D)Total = (E)Average (H)Total/(F)Total = (G)Average (K)Total/(I)Total = (J)Average NOTE: The columns will calculate automatically. If Col. E's response is something other than annually, i.e., 1/6 years, list as "1/6" & decimal will display. | I203: TITLE OF INFORMATION COLLECTION DOCUMENT | N203: OMB NO.
I205: Reporting and Recordkeeping Requirements (U.S. Grain Standards Act and Agricultural Marketing Act of 1946) | N205: =N6 -> 0581-0309
N208: DATE PREPARED
N210: =N11 -> 2024-09-30
A212: IDENTIFICATION OF REPORTING OR RECORDKEEPING REQUIREMENT | H212: ANNUAL BURDEN
H214: REPORTS | M214: RECORDS
O216: TOTAL
G217: FORMS NO (S) | H217: NO. OF | I217: NO OF | J217: TOTAL ANNUAL | K217: HOURS | L217: TOTAL | M217: NO. OF | N217: ANNUAL | O217: RECORD-
A218: SECTION OF | B218: DESCRIPTION | G218: (If "none" | H218: RESPONDENTS | I218: RESPONSES | J218: RESPONSES | K218: PER | L218: HOURS | M218: RECORD- | N218: HOURS PER | O218: KEEPING HOURS
A219: REGS. | G219: so state) | I219: PER | J219: (Col. D x E) | K219: RESPONSE | L219: (Col. F x G) | M219: KEEPERS | N219: RECORD- | O219: (Col. I x J)
I220: RESPONDENT | N220: KEEPER
A221: (A) | B221: (B) | G221: (C) | H221: (D) | I221: (E) | J221: (F) | K221: (G) | L221: (H) | M221: (I) | N221: (J) | O221: (K)
A222: 868.030,031, 033,035,044, 052,070,071, 072,073,074, 075 | B222: Commodity Inspection Certificate | G222: FGIS-993 | H222: 0 | I222: 0.00 | J222: =SUM(H222*I222) -> 0.00 | K222: 0.000 | L222: =SUM(J222*K222) -> 0.00 | M222: 6 | N222: 17.000 | O222: =SUM(M222*N222) -> 102.00
A223: 868.030,031, 033,043,044, 052,070,071, 073,074, 075, 868.35 | B223: Commodity Inspection Certificate - Submitted Sample | G223: FGIS-994 | H223: 0 | I223: 0.00 | J223: 0.00 | K223: 0.000 | L223: 0.00 | M223: 5 | N223: 83.206 | O223: 416.03
A224: USGSA 800.145,151, 158,195,196, 217 | B224: Questionnaire for Proposed Diverter Type Mechanical Sampler Installation | G224: FGIS 998 | H224: 50 | I224: 1.00 | J224: 50.00 | K224: 1.000 | L224: 50.00 | M224: 50 | N224: 0.001 | O224: 0.05
A225: 800.46,145, 153,157,195, 196 | B225: Application for Approval to Operate as a Weighing Facility | G225: FGIS-1001 | H225: 117 | I225: 1.00 | J225: 117.00 | K225: 0.733 | L225: 85.76 | M225: 17 | N225: 0.110 | O225: 1.87
A226: 800.46,145, 153,157,195, 196 | B226: Repair/Modification Notice | G226: FGIS-9601 | H226: 15 | I226: 2.00 | J226: 30.00 | K226: 0.033 | L226: 0.99 | M226: 7 | N226: 0.033 | O226: 0.23
A227: USGSA 800.195 | B227: Application for Delegation -- This action was not used during the last 3 years and is not anticipated for use during next 3 years. Requirement is maintained in regs if any incident should occur that requires action. | G227: None | H227: 0 | I227: 0.00 | J227: 0.00 | K227: 0.000 | L227: 0.00 | M227: 0 | N227: 0.000 | O227: 0.00
B228: SUBTOTAL | H228: =SUM(H222:H227) -> 182.00 | I228: =SUM(I222:I227) -> 4.00 | J228: =SUM(J222:J227) -> 197.00 | L228: =SUM(L222:L227) -> 136.75 | M228: =SUM(M222:M227) -> 85 | O228: =SUM(O222:O227) -> 520.18
A232: INSTRUCTIONS: Use this form when a single information collection document involves multiple reporting and recordkeeping requirements. The totals of the figures in cols. should be entered in item 13 of OMB-83-1: cols. (D) &/or (I) = 13a (respondent is only counted once); cols. F & I = 13b; cols. H & K = 13c. (F)Total/(D)Total = (E)Average (H)Total/(F)Total = (G)Average (K)Total/(I)Total = (J)Average NOTE: The columns will calculate automatically. If Col. E's response is something other than annually, i.e., 1/6 years, list as "1/6" & decimal will display. | I232: TITLE OF INFORMATION COLLECTION DOCUMENT | N232: OMB NO.
I234: Reporting and Recordkeeping Requirements (U.S. Grain Standards Act and Agricultural Marketing Act of 1946) | N234: =N6 -> 0581-0309
N237: DATE PREPARED
N239: =N11 -> 2024-09-30
A241: IDENTIFICATION OF REPORTING OR RECORDKEEPING REQUIREMENT | H241: ANNUAL BURDEN
H243: REPORTS | M243: RECORDS
O245: TOTAL
G246: FORMS NO (S) | H246: NO. OF | I246: NO OF | J246: TOTAL ANNUAL | K246: HOURS | L246: TOTAL | M246: NO. OF | N246: ANNUAL | O246: RECORD-
A247: SECTION OF | B247: DESCRIPTION | G247: (If "none" | H247: RESPONDENTS | I247: RESPONSES | J247: RESPONSES | K247: PER | L247: HOURS | M247: RECORD- | N247: HOURS PER | O247: KEEPING HOURS
A248: REGS. | G248: so state) | I248: PER | J248: (Col. D x E) | K248: RESPONSE | L248: (Col. F x G) | M248: KEEPERS | N248: RECORD- | O248: (Col. I x J)
I249: RESPONDENT | N249: KEEPER
A250: (A) | B250: (B) | G250: (C) | H250: (D) | I250: (E) | J250: (F) | K250: (G) | L250: (H) | M250: (I) | N250: (J) | O250: (K)
A251: 800.18 | B251: Application for Emergency Waiver -- This action was not used during the last 3 years and is not anticipated for use during next 3 years. Requirement is maintained in regs if any incident should occur that requires action. | G251: None | H251: 0 | I251: 1.00 | J251: =SUM(H251*I251) -> 0.00 | K251: 1.000 | L251: =SUM(J251*K251) -> 0.00 | M251: 0 | N251: 0.000 | O251: =SUM(M251*N251) -> 0.00
A252: 800.197, 802.001 | B252: Application for Scale Testing | G252: None | H252: 13 | I252: 13.00 | J252: 169.00 | K252: 1.000 | L252: 169.00 | M252: 0 | N252: 0.000 | O252: 0.00
A253: 800.145,147, 155,196 | B253: Approval to Operate Outside Assigned Area | G253: None | H253: 3 | I253: 1.00 | J253: 3.00 | K253: 0.500 | L253: 1.50 | M253: 0 | N253: 0.000 | O253: 0.00
A254: 800.145,146, 154,185,195, 196, 868.010 | B254: Directives Maintenance | G254: None | H254: 0 | I254: 0.00 | J254: 0.00 | K254: 0.000 | L254: 0.00 | M254: 0 | N254: 0.000 | O254: 0.00
A255: 800.070,145, 150,154,159, 170,195,196, | B255: Fee Records | G255: None | H255: 25 | I255: 1.00 | J255: 25.00 | K255: 1.000 | L255: 25.00 | M255: 25 | N255: 0.001 | O255: 0.03
A256: USGSA 800.081,145, 152,156,195, 196, 868.033, 868.035 | B256: File Samples | G256: None | H256: 0 | I256: 0.00 | J256: 0.00 | K256: 0.000 | L256: 0.00 | M256: 56 | N256: 481.000 | O256: 26,936.00
B257: SUBTOTAL | H257: =SUM(H251:H256) -> 41.00 | I257: =SUM(I251:I256) -> 16.00 | J257: =SUM(J251:J256) -> 197.00 | L257: =SUM(L251:L256) -> 195.50 | M257: =SUM(M251:M256) -> 81 | O257: =SUM(O251:O256) -> 26,936.03
A261: INSTRUCTIONS: Use this form when a single information collection document involves multiple reporting and recordkeeping requirements. The totals of the figures in cols. should be entered in item 13 of OMB-83-1: cols. (D) &/or (I) = 13a (respondent is only counted once); cols. F & I = 13b; cols. H & K = 13c. (F)Total/(D)Total = (E)Average (H)Total/(F)Total = (G)Average (K)Total/(I)Total = (J)Average NOTE: The columns will calculate automatically. If Col. E's response is something other than annually, i.e., 1/6 years, list as "1/6" & decimal will display. | I261: TITLE OF INFORMATION COLLECTION DOCUMENT | N261: OMB NO.
I263: Reporting and Recordkeeping Requirements (U.S. Grain Standards Act and Agricultural Marketing Act of 1946) | N263: =N6 -> 0581-0309
N266: DATE PREPARED
N268: =N11 -> 2024-09-30
A270: IDENTIFICATION OF REPORTING OR RECORDKEEPING REQUIREMENT | H270: ANNUAL BURDEN
H272: REPORTS | M272: RECORDS
O274: TOTAL
G275: FORMS NO (S) | H275: NO. OF | I275: NO OF | J275: TOTAL ANNUAL | K275: HOURS | L275: TOTAL | M275: NO. OF | N275: ANNUAL | O275: RECORD-
A276: SECTION OF | B276: DESCRIPTION | G276: (If "none" | H276: RESPONDENTS | I276: RESPONSES | J276: RESPONSES | K276: PER | L276: HOURS | M276: RECORD- | N276: HOURS PER | O276: KEEPING HOURS
A277: REGS. | G277: so state) | I277: PER | J277: (Col. D x E) | K277: RESPONSE | L277: (Col. F x G) | M277: KEEPERS | N277: RECORD- | O277: (Col. I x J)
I278: RESPONDENT | N278: KEEPER
A279: (A) | B279: (B) | G279: (C) | H279: (D) | I279: (E) | J279: (F) | K279: (G) | L279: (H) | M279: (I) | N279: (J) | O279: (K)
A280: 800.005,145, 195,196,218, 868.008 | B280: Filing Complaints | G280: None | H280: 13 | I280: 2.00 | J280: =SUM(H280*I280) -> 26.00 | K280: 2.000 | L280: =SUM(J280*K280) -> 52.00 | M280: 0 | N280: 0.000 | O280: =SUM(M280*N280) -> 0.00
A281: 800.145,146, 154,185,195, 196, 868.010 | B281: Grain Disposition Record | G281: None | H281: 0 | I281: 0.00 | J281: 0.00 | K281: 0.000 | L281: 0.00 | M281: 56 | N281: 5.400 | O281: 302.40
A282: 800.018,025, 026 | B282: Grain Merchandising Records - Export Exemption/Waiver - Officially Inspected/Weighed | G282: None | H282: 0 | I282: 0.00 | J282: 0.00 | K282: 0.000 | L282: 0.00 | M282: 8 | N282: 5.000 | O282: 40.00
A283: 800.061 | B283: Letter Requesting Exemption from Prohibited Grain Handling Practices - This action was not used during the last 3 years and is not anticipated for use during next 3 years. The requirement is maintained in the regs if any incident should occur. | G283: None | H283: 0 | I283: 0.00 | J283: 0.00 | K283: 0.000 | L283: 0.00 | M283: 0 | N283: 0.000 | O283: 0.00
A284: 800.145,148, 149,154,170, 171,173,175, 176,177,195, 196,199, 8000.17 | B284: License Sensory Examination | G284: CP-2 | H284: 100 | I284: 2.00 | J284: 200.00 | K284: 0.167 | L284: 33.40 | M284: 56 | N284: 0.001 | O284: 0.06
A285: USGSA 800.018 | B285: Notification of 15,000 MT Exemption | G285: None | H285: 13 | I285: 1.00 | J285: 13.00 | K285: 0.167 | L285: 2.17 | M285: 10 | N285: 0.001 | O285: 0.01
B286: SUBTOTAL | H286: =SUM(H280:H285) -> 126.00 | I286: =SUM(I280:I285) -> 5.00 | J286: =SUM(J280:J285) -> 239.00 | L286: =SUM(L280:L285) -> 87.57 | M286: =SUM(M280:M285) -> 130 | O286: =SUM(O280:O285) -> 342.47
A290: INSTRUCTIONS: Use this form when a single information collection document involves multiple reporting and recordkeeping requirements. The totals of the figures in cols. should be entered in item 13 of OMB-83-1: cols. (D) &/or (I) = 13a (respondent is only counted once); cols. F & I = 13b; cols. H & K = 13c. (F)Total/(D)Total = (E)Average (H)Total/(F)Total = (G)Average (K)Total/(I)Total = (J)Average NOTE: The columns will calculate automatically. If Col. E's response is something other than annually, i.e., 1/6 years, list as "1/6" & decimal will display. | I290: TITLE OF INFORMATION COLLECTION DOCUMENT | N290: OMB NO.
I292: Reporting and Recordkeeping Requirements (U.S. Grain Standards Act and Agricultural Marketing Act of 1946) | N292: =N6 -> 0581-0309
N295: DATE PREPARED
N297: =N11 -> 2024-09-30
A299: IDENTIFICATION OF REPORTING OR RECORDKEEPING REQUIREMENT | H299: ANNUAL BURDEN
H301: REPORTS | M301: RECORDS
O303: TOTAL
G304: FORMS NO (S) | H304: NO. OF | I304: NO OF | J304: TOTAL ANNUAL | K304: HOURS | L304: TOTAL | M304: NO. OF | N304: ANNUAL | O304: RECORD-
A305: SECTION OF | B305: DESCRIPTION | G305: (If "none" | H305: RESPONDENTS | I305: RESPONSES | J305: RESPONSES | K305: PER | L305: HOURS | M305: RECORD- | N305: HOURS PER | O305: KEEPING HOURS
A306: REGS. | G306: so state) | I306: PER | J306: (Col. D x E) | K306: RESPONSE | L306: (Col. F x G) | M306: KEEPERS | N306: RECORD- | O306: (Col. I x J)
I307: RESPONDENT | N307: KEEPER
A308: (A) | B308: (B) | G308: (C) | H308: (D) | I308: (E) | J308: (F) | K308: (G) | L308: (H) | M308: (I) | N308: (J) | O308: (K)
A309: 800.145,147, 155,196 | B309: Notification of Change in Specified Service Point | G309: None | H309: 30 | I309: 1.00 | J309: =SUM(H309*I309) -> 30.00 | K309: 0.500 | L309: =SUM(J309*K309) -> 15.00 | M309: 0 | N309: 0.000 | O309: =SUM(M309*N309) -> 0.00
A310: 800.048,049, 050,145,153, 155,159,195, 196, 868.022, 023, 024, 025 | B310: Notification of Dismissal/Withdrawal/Refusal | G310: None | H310: 24 | I310: 1.00 | J310: =SUM(H310*I310) -> 24.00 | K310: 0.017 | L310: =SUM(J310*K310) -> 0.41 | M310: 24 | N310: 0.001 | O310: =SUM(M310*N310) -> 0.02
... 858 more rows
